[Event "European Online Club-ch-B 2021"]
[Site "Online"]
[Date "2021.03.27"]
[Round "9.18"]
[White "Navara, David"]
[Black "Mathieu, Phileas"]
[Result "1-0"]
[ECO "A58"]
[WhiteElo "2697"]
[BlackElo "2240"]
[Annotator "ChessBase"]
[PlyCount "35"]
[EventDate "2021.03.27"]
[EventType "team-tourn"]
[EventCountry "NET"]
[SourceTitle "playchess.com"]
[Source "ChessBase"]
[SourceQuality "1"]
[TimeControl "900+5"]

1. d4 {[%emt 0:00:00]} Nf6 {[%emt 0:00:03]} 2. c4 {[%emt 0:00:02]} c5 {[%emt 0:00:01]} 3. d5 {[%emt 0:00:01]} b5 {[%emt 0:00:01]} 4. cxb5 {[%emt 0:00:01]} a6 {[%emt 0:00:01]} 5. bxa6 {[%emt 0:00:01]} g6 {[%emt 0:00:01]} 6. Nc3 {[%emt 0:00:03]} Bg7 {[%emt 0:00:03]} 7. e4 {[%emt 0:00:01]} O-O {[%emt 0:00:01]} 8. e5 {[%emt 0:00:01]} Ne8 {[%emt 0:00:15]} 9. h4 {[%emt 0:00:02]} d6 {[%emt 0:00:14]} 10. h5 {[%emt 0:00:03]} Nd7 {[%emt 0:01:14]} 11. hxg6 {[%emt 0:01:10]} hxg6 {[%emt 0:00:07]} 12. e6 {[%emt 0:03:02]} fxe6 {[%emt 0:02:31]} 13. dxe6 {[%emt 0:00:00]} Ne5 {[%emt 0:00:31]} 14. f4 {[%emt 0:00:11]} Nc6 {[%emt 0:00:12]} 15. Nf3 {[%emt 0:04:07]} Nd4 {[%emt 0:03:31]} 16. Ng5 {[%emt 0:00:23]} Nc7 {[%emt 0:00:29]} 17. Qd3 {[%emt 0:02:49]} Ncxe6 {[%emt 0:00:36]} 18. Rh8+ {[%emt 0:00:06]} 1-0

[Event "European Online Club-ch-B 2021"]
[Site "Online"]
[Date "2021.03.27"]
[Round "9.19"]
[White "Adrian, Leopold"]
[Black "Sasikiran, Krishnan"]
[Result "0-1"]
[ECO "A25"]
[WhiteElo "2009"]
[BlackElo "2647"]
[Annotator "ChessBase"]
[PlyCount "70"]
[EventDate "2021.03.27"]
[EventType "team-tourn"]
[EventCountry "NET"]
[SourceTitle "playchess.com"]
[Source "ChessBase"]
[SourceQuality "1"]
[TimeControl "900+5"]

1. c4 {[%emt 0:00:00]} e5 {[%emt 0:00:03]} 2. Nc3 {[%emt 0:00:02]} Nc6 {[%emt 0:00:03]} 3. e3 {[%emt 0:00:04]} Nf6 {[%emt 0:00:22]} 4. g4 {[%emt 0:00:03]} d5 {[%emt 0:01:35]} 5. g5 {[%emt 0:00:08]} d4 {[%emt 0:00:02]} 6. gxf6 {[%emt 0:00:09]} dxc3 {[%emt 0:00:02]} 7. bxc3 {[%emt 0:00:02]} Qxf6 {[%emt 0:00:29]} 8. Bg2 {[%emt 0:00:09]} Qg6 {[%emt 0:01:05]} 9. Qf3 {[%emt 0:00:11]} Be6 {[%emt 0:02:56]} 10. d4 {[%emt 0:01:34]} Bxc4 {[%emt 0:00:46]} 11. d5 {[%emt 0:00:26]} Na5 {[%emt 0:02:01]} 12. Ne2 {[%emt 0:00:36]} O-O-O {[%emt 0:01:15]} 13. e4 {[%emt 0:00:48]} Kb8 {[%emt 0:00:03]} 14. O-O {[%emt 0:00:04]} f5 {[%emt 0:00:53]} 15. exf5 {[%emt 0:00:45]} Qa6 {[%emt 0:00:02]} 16. Re1 {[%emt 0:00:24]} Bc5 {[%emt 0:00:29]} 17. Bg5 {[%emt 0:00:49]} Rxd5 {[%emt 0:00:52]} 18. Ng3 {[%emt 0:00:37]} h6 {[%emt 0:00:29]} 19. Be3 {[%emt 0:00:07]} Bxe3 {[%emt 0:00:24]} 20. Qxe3 {[%emt 0:00:04]} Rd7 {[%emt 0:00:31]} 21. Qxe5 {[%emt 0:00:20]} Rhd8 {[%emt 0:00:25]} 22. Nh5 {[%emt 0:00:55]} Nc6 {[%emt 0:00:15]} 23. Qc5 {[%emt 0:00:30]} Bd5 {[%emt 0:00:08]} 24. Rad1 {[%emt 0:00:27]} b6 {[%emt 0:01:06]} 25. Qe3 {[%emt 0:02:22]} Qxa2 {[%emt 0:00:09]} 26. Rxd5 {[%emt 0:00:57]} Rxd5 {[%emt 0:00:03]} 27. Nxg7 {[%emt 0:00:01]} Re5 {[%emt 0:00:11]} 28. Qc1 {[%emt 0:00:02]} Qd2 {[%emt 0:00:11]} 29. Qxd2 {[%emt 0:00:35]} Rxd2 {[%emt 0:00:03]} 30. Rxe5 {[%emt 0:00:01]} Nxe5 {[%emt 0:00:02]} 31. f6 {[%emt 0:00:27]} a5 {[%emt 0:00:03]} 32. Be4 {[%emt 0:00:28]} a4 {[%emt 0:00:06]} 33. f4 {[%emt 0:00:02]} Nd7 {[%emt 0:00:04]} 34. f7 {[%emt 0:00:10]} a3 {[%emt 0:00:02]} 35. Bb1 {[%emt 0:00:17]} Rb2 {[%emt 0:00:05]} 0-1

[Event "European Online Club-ch-B 2021"]
[Site "Online"]
[Date "2021.03.27"]
[Round "9.20"]
[White "Ragger, Markus"]
[Black "Venard, Paul-Andre"]
[Result "1-0"]
[ECO "B38"]
[WhiteElo "2680"]
[BlackElo "2048"]
[Annotator "ChessBase"]
[PlyCount "49"]
[EventDate "2021.03.27"]
[EventType "team-tourn"]
[EventCountry "NET"]
[SourceTitle "playchess.com"]
[Source "ChessBase"]
[SourceQuality "1"]
[TimeControl "900+5"]

1. e4 {[%emt 0:00:00]} c5 {[%emt 0:00:04]} 2. Nf3 {[%emt 0:00:03]} g6 {[%emt 0:00:02]} 3. d4 {[%emt 0:00:01]} cxd4 {[%emt 0:00:02]} 4. Nxd4 {[%emt 0:00:01]} Bg7 {[%emt 0:00:02]} 5. c4 {[%emt 0:00:02]} Nc6 {[%emt 0:00:04]} 6. Be3 {[%emt 0:00:01]} Nh6 {[%emt 0:00:05]} 7. Nc3 {[%emt 0:00:23]} d6 {[%emt 0:00:06]} 8. Be2 {[%emt 0:00:05]} f5 {[%emt 0:00:11]} 9. Bxh6 {[%emt 0:00:44]} Bxh6 {[%emt 0:00:27]} 10. exf5 {[%emt 0:00:03]} O-O {[%emt 0:02:52]} 11. Ne6 {[%emt 0:01:40]} Bxe6 {[%emt 0:00:59]} 12. fxe6 {[%emt 0:00:01]} Qb6 {[%emt 0:00:13]} 13. O-O {[%emt 0:00:02]} Qxb2 {[%emt 0:00:29]} 14. Nd5 {[%emt 0:00:04]} b6 {[%emt 0:03:30]} 15. Rb1 {[%emt 0:01:37]} Qxa2 {[%emt 0:01:43]} 16. Bd3 {[%emt 0:01:35]} Qd2 {[%emt 0:02:08]} 17. Qxd2 {[%emt 0:01:28]} Bxd2 {[%emt 0:00:03]} 18. f4 {[%emt 0:00:03]} Rac8 {[%emt 0:02:12]} 19. g3 {[%emt 0:04:56]} Rfe8 {[%emt 0:00:53]} 20. Rfd1 {[%emt 0:00:33]} Ba5 {[%emt 0:00:05]} 21. Bc2 {[%emt 0:00:06]} Nd8 {[%emt 0:00:20]} 22. Ba4 {[%emt 0:00:11]} Nxe6 {[%emt 0:00:12]} 23. Bxe8 {[%emt 0:00:36]} Rxe8 {[%emt 0:00:02]} 24. Rb3 {[%emt 0:00:03]} Kf7 {[%emt 0:00:09]} 25. Re3 {[%emt 0:00:03]} 1-0